{"text_format":"1","workbook":"xlsx","n_sheets":3,"sheets":["入所申込書","施設コード","現況届"],"not_rendered":{"charts":0,"images":31,"macros":1,"external_links":0,"defined_names":2,"comments":1,"pivot_tables":0},"unopened":[],"bounds":{"document_bytes":16777216,"sheet_cells":100000,"rows_first":2000,"rows_last":500,"rows_between":2000,"halvings":0,"cell_chars":16384,"cell_head_chars":4096},"cells_cut":0,"cells_raw":0,"read":"whole","date_system":"1900"}

{"sheet":"入所申込書","index":0,"n_rows":117,"n_cols":66,"rows_kept":117,"cut":false,"hidden":false,"merged":[[1,0,1,59],[1,61,8,62],[1,63,1,64],[2,1,3,6],[2,47,3,50],[2,51,3,59],[2,63,4,64],[2,65,4,65],[4,0,10,59],[5,63,7,64],[5,65,7,65],[8,63,22,63],[8,64,10,64],[8,65,10,65],[11,0,14,2],[11,3,14,3],[11,4,14,6],[11,7,14,7],[11,8,14,10],[11,11,14,59],[11,64,13,64],[11,65,13,65],[14,64,16,64],[14,65,16,65],[15,0,16,21],[15,22,16,30],[15,31,16,33],[15,34,16,39],[15,40,16,47],[15,48,16,59],[17,0,20,2],[17,3,17,5],[17,6,17,21],[17,22,20,30],[17,31,20,33],[17,34,20,39],[17,40,20,47],[17,64,18,64],[17,65,18,65],[18,3,20,21],[19,64,20,64],[19,65,20,65],[21,0,24,2],[21,3,21,5],[21,6,21,21],[21,22,24,30],[21,31,24,33],[17,54,20,54],[17,55,20,55],[17,56,20,56],[17,57,20,57],[17,58,20,58],[17,59,20,59],[17,48,20,48],[17,49,20,49],[17,50,20,50],[17,51,20,51],[17,52,20,52],[17,53,20,53],[21,58,24,58],[21,59,24,59],[21,64,22,64],[21,65,22,65],[22,3,24,21],[23,63,39,63],[23,64,25,64],[23,65,25,65],[25,0,26,59],[26,64,28,64],[21,52,24,52],[21,53,24,53],[21,54,24,54],[21,55,24,55],[21,56,24,56],[21,57,24,57],[21,34,24,39],[21,40,24,47],[21,48,24,48],[21,49,24,49],[21,50,24,50],[21,51,24,51],[26,65,28,65],[27,0,29,59],[29,64,31,64],[29,65,31,65],[30,0,31,2],[30,3,31,21],[30,22,31,30],[30,31,31,33],[30,34,31,36],[30,37,31,39],[30,40,31,47],[30,48,31,59],[32,0,35,2],[32,3,32,5],[32,6,32,21],[32,22,35,30],[32,31,35,33],[32,34,35,36],[32,37,35,39],[32,40,35,47],[32,64,33,64],[32,65,33,65],[33,3,35,21],[34,64,35,64],[34,65,35,65],[36,0,39,2],[36,3,36,5],[36,6,36,21],[36,22,39,30],[36,31,39,33],[32,54,35,54],[32,55,35,55],[32,56,35,56],[32,57,35,57],[32,58,35,58],[32,59,35,59],[32,48,35,48],[32,49,35,49],[32,50,35,50],[32,51,35,51],[32,52,35,52],[32,53,35,53],[36,58,39,58],[36,59,39,59],[36,64,37,64],[36,65,37,65],[37,3,39,21],[38,64,39,64],[38,65,39,65],[36,51,39,51],[36,52,39,52],[36,53,39,53],[36,54,39,54],[36,55,39,55],[36,56,39,56],[36,34,39,36],[36,37,39,39],[36,40,39,47],[36,48,39,48],[36,49,39,49],[36,50,39,50],[40,50,43,50],[40,51,43,51],[40,0,43,2],[40,3,40,5],[40,6,40,21],[40,22,43,30],[40,31,43,33],[40,34,43,36],[36,57,39,57],[44,6,44,21],[44,22,47,30],[44,31,47,33],[44,34,47,36],[40,58,43,58],[40,59,43,59],[40,63,42,64],[40,65,42,65],[41,3,43,21],[43,63,44,64],[43,65,44,65],[44,37,47,39],[44,40,47,47],[44,48,47,48],[40,52,43,52],[40,53,43,53],[40,54,43,54],[40,55,43,55],[40,56,43,56],[40,57,43,57],[40,37,43,39],[40,40,43,47],[40,48,43,48],[40,49,43,49],[45,63,47,64],[45,65,47,65],[48,2,49,42],[48,63,53,63],[48,64,50,64],[48,65,50,65],[50,0,61,2],[50,3,52,6],[50,7,52,26],[50,27,52,30],[44,55,47,55],[44,56,47,56],[44,57,47,57],[44,58,47,58],[44,59,47,59],[45,3,47,21],[44,49,47,49],[44,50,47,50],[44,51,47,51],[44,52,47,52],[44,53,47,53],[44,54,47,54],[44,0,47,2],[44,3,44,5],[50,31,52,35],[50,36,52,55],[50,56,52,59],[51,64,53,64],[51,65,53,65],[53,3,55,6],[53,7,55,26],[53,27,55,30],[53,31,55,35],[53,36,55,55],[53,56,55,59],[54,63,56,64],[54,65,56,65],[56,3,58,6],[56,7,58,26],[56,27,58,30],[56,31,58,35],[56,36,58,55],[56,56,58,59],[57,63,59,64],[57,65,59,65],[59,3,61,6],[59,7,61,26],[59,27,61,30],[78,28,80,31],[80,39,81,40],[59,31,61,35],[59,36,61,55],[59,56,61,59],[60,63,62,64],[60,65,62,65],[69,3,70,31],[71,3,72,31],[71,36,72,37],[71,38,72,48],[63,0,72,2],[63,3,65,25],[63,33,64,59],[65,34,66,49],[66,4,68,5],[66,6,68,7],[66,8,68,23],[66,24,68,25],[66,26,68,28],[68,34,69,52],[80,41,81,57],[82,0,84,31],[84,34,85,53],[85,0,91,6],[85,7,87,8],[85,9,87,31],[87,36,88,37],[87,38,88,48],[87,49,89,59],[88,7,91,8],[88,9,91,31],[90,36,91,48],[74,0,80,2],[74,3,80,13],[74,14,80,15],[74,16,77,17],[74,18,77,31],[74,36,75,48],[77,39,78,40],[77,41,78,57],[78,16,80,17],[78,18,80,22],[78,23,80,24],[78,25,80,27],[92,0,103,6],[92,7,97,10],[92,12,94,12],[92,13,94,15],[92,16,94,16],[92,17,94,19],[92,20,94,20],[92,21,94,23],[92,25,94,25],[98,7,103,10],[98,12,100,12],[98,13,100,15],[98,16,100,16],[98,17,100,19],[98,20,100,20],[98,21,100,23],[98,25,100,25],[92,26,94,30],[93,39,94,40],[93,41,94,57],[95,12,97,12],[95,13,97,17],[95,18,97,18],[95,19,97,23],[95,25,97,25],[95,26,97,28],[96,39,97,40],[96,41,97,57],[98,26,100,30],[100,34,101,35],[100,36,101,48],[100,49,102,59],[101,12,103,12],[101,13,103,17],[101,18,103,18],[101,19,103,23],[101,25,103,25],[101,26,103,28],[116,0,117,14],[116,15,117,49],[116,50,117,59],[105,0,107,14],[105,15,107,49],[105,50,115,59],[108,0,109,14],[108,15,115,49],[110,0,111,14],[112,0,113,14],[114,0,115,14]]}
["別記様式第１号（第３条関係）"]
["教育・保育給付認定申請書兼保育所入所（転所）申込書",null,null,null,null,null,null,null,null,null,null,null,null,null,null,null,null,null,null,null,null,null,null,null,null,null,null,null,null,null,null,null,null,null,null,null,null,null,null,null,null,null,null,null,null,null,null,null,null,null,null,null,null,null,null,null,null,null,null,null,null,{"$f":"IF(COUNTIF(BN2:BN63,\"NG\")=0,\"OK\",\"NG\")","v":"NG"},null,"申請日",null,{"$f":"IF(NOT(AZ3=\"\"),\"OK\",\"NG\")","v":"NG"}]
[null,"文京区長　殿",null,null,null,null,null,null,null,null,null,null,null,null,null,null,null,null,null,null,null,null,null,null,null,null,null,null,null,null,null,null,null,null,null,null,null,null,null,null,null,null,null,null,null,null,null,"申請日",null,null,null,null,null,null,null,null,null,null,null,null,null,null,null,"郵便番号",null,{"$f":"IF(NOT(AND(E12=\"\",I12=\"\")),\"OK\",\"NG\")","v":"NG"}]
[]
["　次のとおり保育所の入所（転所）を申し込みます。\n　なお、児童が卒園し、又は退園するまで、入所の承諾、保育料の決定等のため必要な区が保有する個人情報(同一世帯者に係るものを含む。）について文京区長が確認することに同意します。\n　また、その情報に基づき決定した利用者負担額を特定教育・保育施設等に提示することに同意します。"]
[null,null,null,null,null,null,null,null,null,null,null,null,null,null,null,null,null,null,null,null,null,null,null,null,null,null,null,null,null,null,null,null,null,null,null,null,null,null,null,null,null,null,null,null,null,null,null,null,null,null,null,null,null,null,null,null,null,null,null,null,null,null,null,"住所",null,{"$f":"IF(NOT(L12=\"\"),\"OK\",\"NG\")","v":"NG"}]
[]
[]
[null,null,null,null,null,null,null,null,null,null,null,null,null,null,null,null,null,null,null,null,null,null,null,null,null,null,null,null,null,null,null,null,null,null,null,null,null,null,null,null,null,null,null,null,null,null,null,null,null,null,null,null,null,null,null,null,null,null,null,null,null,null,null,"保護者","氏名",{"$f":"IF(NOT(D19=\"\"),\"OK\",\"NG\")","v":"NG"}]
[]
[]
["現住所",null,null,"〒",null,null,null,"-",null,null,null,null,null,null,null,null,null,null,null,null,null,null,null,null,null,null,null,null,null,null,null,null,null,null,null,null,null,null,null,null,null,null,null,null,null,null,null,null,null,null,null,null,null,null,null,null,null,null,null,null,null,null,null,null,"生年月日",{"$f":"IF(NOT(W18=\"\"),\"OK\",\"NG\")","v":"NG"}]
[]
[]
[null,null,null,null,null,null,null,null,null,null,null,null,null,null,null,null,null,null,null,null,null,null,null,null,null,null,null,null,null,null,null,null,null,null,null,null,null,null,null,null,null,null,null,null,null,null,null,null,null,null,null,null,null,null,null,null,null,null,null,null,null,null,null,null,"属柄",{"$f":"IF(NOT(AF18=\"\"),\"OK\",\"NG\")","v":"NG"}]
["氏名（自署又は記名押印）",null,null,null,null,null,null,null,null,null,null,null,null,null,null,null,null,null,null,null,null,null,"生年月日",null,null,null,null,null,null,null,null,"児童との\n続柄",null,null,"職業等",null,null,null,null,null,"電話番号",null,null,null,null,null,null,null,"個人番号"]
[]
["保護者①",null,null,"ﾌﾘｶﾞﾅ",null,null,null,null,null,null,null,null,null,null,null,null,null,null,null,null,null,null,null,null,null,null,null,null,null,null,null,null,null,null,null,null,null,null,null,null,null,null,null,null,null,null,null,null,null,null,null,null,null,null,null,null,null,null,null,null,null,null,null,null,"職業",{"$f":"IF(NOT(AI18=\"\"),\"OK\",\"NG\")","v":"NG"}]
[]
[null,null,null,null,null,null,null,null,null,null,null,null,null,null,null,null,null,null,null,null,null,null,null,null,null,null,null,null,null,null,null,null,null,null,null,null,null,null,null,null,null,null,null,null,null,null,null,null,null,null,null,null,null,null,null,null,null,null,null,null,null,null,null,null,"電話番号",{"$f":"IF(NOT(AO18=\"\"),\"OK\",\"NG\")","v":"NG"}]
[]
["保護者\n②",null,null,"ﾌﾘｶﾞﾅ",null,null,null,null,null,null,null,null,null,null,null,null,null,null,null,null,null,null,null,null,null,null,null,null,null,null,null,null,null,null,null,null,null,null,null,null,null,null,null,null,null,null,null,null,null,null,null,null,null,null,null,null,null,null,null,null,null,null,null,null,"個人番号",{"$f":"IF(OR(AW18=\"\",AX18=\"\",AY18=\"\",AZ18=\"\",BA18=\"\",BB18=\"\",BC18=\"\",BD18=\"\",BE18=\"\",BF18=\"\",BG18=\"\",BH18=\"\"),\"NG\",\"OK\")","v":"NG"}]
[]
[null,null,null,null,null,null,null,null,null,null,null,null,null,null,null,null,null,null,null,null,null,null,null,null,null,null,null,null,null,null,null,null,null,null,null,null,null,null,null,null,null,null,null,null,null,null,null,null,null,null,null,null,null,null,null,null,null,null,null,null,null,null,null,"世帯員","氏名",{"$f":"IF(NOT(D34=\"\"),\"OK\",\"NG\")","v":"NG"}]
[]
["※通知書等の郵送先の宛名は、保護者①に記入した方となります。"]
[null,null,null,null,null,null,null,null,null,null,null,null,null,null,null,null,null,null,null,null,null,null,null,null,null,null,null,null,null,null,null,null,null,null,null,null,null,null,null,null,null,null,null,null,null,null,null,null,null,null,null,null,null,null,null,null,null,null,null,null,null,null,null,null,"生年月日",{"$f":"IF(NOT(W33=\"\"),\"OK\",\"NG\")","v":"NG"}]
["園児の属する世帯の状況　※保護者を除く、同一生計の方全員を記入してください（対象児童を含む。）。"]
[]
[null,null,null,null,null,null,null,null,null,null,null,null,null,null,null,null,null,null,null,null,null,null,null,null,null,null,null,null,null,null,null,null,null,null,null,null,null,null,null,null,null,null,null,null,null,null,null,null,null,null,null,null,null,null,null,null,null,null,null,null,null,null,null,null,"続柄",{"$f":"IF(NOT(AF33=\"\"),\"OK\",\"NG\")","v":"NG"}]
["申込児童\nに✓",null,null,"氏名",null,null,null,null,null,null,null,null,null,null,null,null,null,null,null,null,null,null,"生年月日",null,null,null,null,null,null,null,null,"児童との\n続柄",null,null,"年齢",null,null,"性別",null,null,"お子さんの学校名等",null,null,null,null,null,null,null,"個人番号"]
[]
[null,null,null,"ﾌﾘｶﾞﾅ",null,null,null,null,null,null,null,null,null,null,null,null,null,null,null,null,null,null,null,null,null,null,null,null,null,null,null,null,null,null,{"$f":"IF(W33=\"\",\"\",IFERROR(DATEDIF(W33,$BJ$33,\"y\"),0))","v":""},null,null,null,null,null,null,null,null,null,null,null,null,null,null,null,null,null,null,null,null,null,null,null,null,null,null,"2024-04-01",null,null,"年齢",{"$f":"IF(NOT(AI33=\"\"),\"OK\",\"NG\")","v":"NG"}]
[null,null,null,null,null,null,null,null,null,null,null,null,null,null,null,null,null,null,null,null,null,null,null,null,null,null,null,null,null,null,null,null,null,null,null,null,null,null,null,null,null,null,null,null,null,null,null,null,null,null,null,null,null,null,null,null,null,null,null,null,null,false]
[null,null,null,null,null,null,null,null,null,null,null,null,null,null,null,null,null,null,null,null,null,null,null,null,null,null,null,null,null,null,null,null,null,null,null,null,null,null,null,null,null,null,null,null,null,null,null,null,null,null,null,null,null,null,null,null,null,null,null,null,null,false,null,null,"性別",{"$f":"IF(NOT(AL33=\"\"),\"OK\",\"NG\")","v":"NG"}]
[null,null,null,null,null,null,null,null,null,null,null,null,null,null,null,null,null,null,null,null,null,null,null,null,null,null,null,null,null,null,null,null,null,null,null,null,null,null,null,null,null,null,null,null,null,null,null,null,null,null,null,null,null,null,null,null,null,null,null,null,null,false]
[null,null,null,"ﾌﾘｶﾞﾅ",null,null,null,null,null,null,null,null,null,null,null,null,null,null,null,null,null,null,null,null,null,null,null,null,null,null,null,null,null,null,{"$f":"IF(W37=\"\",\"\",IFERROR(DATEDIF(W37,$BJ$33,\"y\"),0))","v":""},null,null,null,null,null,null,null,null,null,null,null,null,null,null,null,null,null,null,null,null,null,null,null,null,null,null,false,null,null,"学校名等",{"$f":"IF(NOT(AO33=\"\"),\"OK\",\"NG\")","v":"NG"}]
[null,null,null,null,null,null,null,null,null,null,null,null,null,null,null,null,null,null,null,null,null,null,null,null,null,null,null,null,null,null,null,null,null,null,null,null,null,null,null,null,null,null,null,null,null,null,null,null,null,null,null,null,null,null,null,null,null,null,null,null,null,{"$f":"COUNTIF(BJ34:BJ37,TRUE)","v":0}]
[null,null,null,null,null,null,null,null,null,null,null,null,null,null,null,null,null,null,null,null,null,null,null,null,null,null,null,null,null,null,null,null,null,null,null,null,null,null,null,null,null,null,null,null,null,null,null,null,null,null,null,null,null,null,null,null,null,null,null,null,null,null,null,null,"個人番号",{"$f":"IF(OR(AW33=\"\",AX33=\"\",AY33=\"\",AZ33=\"\",BA33=\"\",BB33=\"\",BC33=\"\",BD33=\"\",BE33=\"\",BF33=\"\",BG33=\"\",BH33=\"\"),\"NG\",\"OK\")","v":"NG"}]
[]
[null,null,null,"ﾌﾘｶﾞﾅ",null,null,null,null,null,null,null,null,null,null,null,null,null,null,null,null,null,null,null,null,null,null,null,null,null,null,null,null,null,null,{"$f":"IF(W41=\"\",\"\",IFERROR(DATEDIF(W41,$BJ$33,\"y\"),0))","v":""},null,null,null,null,null,null,null,null,null,null,null,null,null,null,null,null,null,null,null,null,null,null,null,null,null,null,null,null,"申込児童",null,{"$f":"IF(BJ34=TRUE,\"OK\",\"NG\")","v":"NG"}]
[]
[]
[null,null,null,null,null,null,null,null,null,null,null,null,null,null,null,null,null,null,null,null,null,null,null,null,null,null,null,null,null,null,null,null,null,null,null,null,null,null,null,null,null,null,null,null,null,null,null,null,null,null,null,null,null,null,null,null,null,null,null,null,null,null,null,"希望園",null,{"$f":"IF(H51=\"\",\"NG\",\"OK\")","v":"NG"}]
[null,null,null,"ﾌﾘｶﾞﾅ",null,null,null,null,null,null,null,null,null,null,null,null,null,null,null,null,null,null,null,null,null,null,null,null,null,null,null,null,null,null,{"$f":"IF(W45=\"\",\"\",IFERROR(DATEDIF(W45,$BJ$33,\"y\"),0))","v":""}]
[null,null,null,null,null,null,null,null,null,null,null,null,null,null,null,null,null,null,null,null,null,null,null,null,null,null,null,null,null,null,null,null,null,null,null,null,null,null,null,null,null,null,null,null,null,null,null,null,null,null,null,null,null,null,null,null,null,null,null,null,null,null,null,"延長保育",null,{"$f":"IF(OR(BK65=TRUE,BJ65=TRUE,BJ66=TRUE),\"OK\",\"NG\")","v":"OK"}]
[]
[]
[null,null,"↓園名・施設コードどちらでも入力できます。削除する際は、園名と施設コードを範囲選択してから消してください。",null,null,null,null,null,null,null,null,null,null,null,null,null,null,null,null,null,null,null,null,null,null,null,null,null,null,null,null,null,null,null,null,null,null,null,null,null,null,null,null,null,null,null,null,null,null,null,null,null,null,null,null,null,null,null,null,null,null,null,null,"通園希望期間","開始",{"$f":"IF(NOT(D75=\"\"),\"OK\",\"NG\")","v":"NG"}]
[]
["希\n望\nす\nる\n保\n育\n所",null,null,"第１希望",null,null,null,null,null,null,null,null,null,null,null,null,null,null,null,null,null,null,null,null,null,null,null,null,null,null,null,"第５希望",null,null,null,null,null,null,null,null,null,null,null,null,null,null,null,null,null,null,null,null,null,null,null,null,null,null,null,null,null,1,{"$f":"IF(OR(AND(AB51>100,AB51<200),AB51=16100),TRUE,FALSE)","v":false}]
[null,null,null,null,null,null,null,null,null,null,null,null,null,null,null,null,null,null,null,null,null,null,null,null,null,null,null,null,null,null,null,null,null,null,null,null,null,null,null,null,null,null,null,null,null,null,null,null,null,null,null,null,null,null,null,null,null,null,null,null,null,2,{"$f":"IF(OR(AND(AB54>100,AB54<200),AB54=16100),TRUE,FALSE)","v":false},null,"終了",{"$f":"IF(OR(BJ77=TRUE,BJ82=TRUE),\"OK\",\"NG\")","v":"NG"}]
[null,null,null,null,null,null,null,null,null,null,null,null,null,null,null,null,null,null,null,null,null,null,null,null,null,null,null,null,null,null,null,null,null,null,null,null,null,null,null,null,null,null,null,null,null,null,null,null,null,null,null,null,null,null,null,null,null,null,null,null,null,3,{"$f":"IF(OR(AND(AB57>100,AB57<200),AB57=16100),TRUE,FALSE)","v":false}]
[null,null,null,"第２希望",null,null,null,null,null,null,null,null,null,null,null,null,null,null,null,null,null,null,null,null,null,null,null,null,null,null,null,"第６希望",null,null,null,null,null,null,null,null,null,null,null,null,null,null,null,null,null,null,null,null,null,null,null,null,null,null,null,null,null,4,{"$f":"IF(OR(AND(AB60>100,AB60<200),AB60=16100),TRUE,FALSE)","v":false}]
[null,null,null,null,null,null,null,null,null,null,null,null,null,null,null,null,null,null,null,null,null,null,null,null,null,null,null,null,null,null,null,null,null,null,null,null,null,null,null,null,null,null,null,null,null,null,null,null,null,null,null,null,null,null,null,null,null,null,null,null,null,5,{"$f":"IF(OR(AND(BE51>100,BE51<200),BE51=16100),TRUE,FALSE)","v":false},"希望保育時間",null,{"$f":"IF(OR(BJ86=TRUE,BJ87=TRUE),\"OK\",\"NG\")","v":"NG"}]
[null,null,null,null,null,null,null,null,null,null,null,null,null,null,null,null,null,null,null,null,null,null,null,null,null,null,null,null,null,null,null,null,null,null,null,null,null,null,null,null,null,null,null,null,null,null,null,null,null,null,null,null,null,null,null,null,null,null,null,null,null,6,{"$f":"IF(OR(AND(BE54>100,BE54<200),BE54=16100),TRUE,FALSE)","v":false}]
[null,null,null,"第３希望",null,null,null,null,null,null,null,null,null,null,null,null,null,null,null,null,null,null,null,null,null,null,null,null,null,null,null,"第７希望",null,null,null,null,null,null,null,null,null,null,null,null,null,null,null,null,null,null,null,null,null,null,null,null,null,null,null,null,null,7,{"$f":"IF(OR(AND(BE57>100,BE57<200),BE57=16100),TRUE,FALSE)","v":false}]
[null,null,null,null,null,null,null,null,null,null,null,null,null,null,null,null,null,null,null,null,null,null,null,null,null,null,null,null,null,null,null,null,null,null,null,null,null,null,null,null,null,null,null,null,null,null,null,null,null,null,null,null,null,null,null,null,null,null,null,null,null,8,{"$f":"IF(OR(AND(BE60>100,BE60<200),BE60=16100),TRUE,FALSE)","v":false},"必要事由",null,{"$f":"IF(BK92=TRUE,\"OK\",\"NG\")","v":"NG"}]
[null,null,null,null,null,null,null,null,null,null,null,null,null,null,null,null,null,null,null,null,null,null,null,null,null,null,null,null,null,null,null,null,null,null,null,null,null,null,null,null,null,null,null,null,null,null,null,null,null,null,null,null,null,null,null,null,null,null,null,null,null,null,{"$f":"COUNTIF(BK51:BK58,TRUE)","v":0}]
[null,null,null,"第４希望",null,null,null,null,null,null,null,null,null,null,null,null,null,null,null,null,null,null,null,null,null,null,null,null,null,null,null,"第８希望"]
[null,null,null,null,null,null,null,null,null,null,null,null,null,null,null,null,null,null,null,null,null,null,null,null,null,null,null,null,null,null,null,null,null,null,null,null,null,null,null,null,null,null,null,null,null,null,null,null,null,null,null,null,null,null,null,null,null,null,null,null,null,null,null,"きょうだい条件",null,{"$f":"IF(OR(BJ75=1,BJ38<2),\"OK\",\"NG\")","v":"OK"}]
[]
[]
["延長\n保育\nの\n希望",null,null,"区立保育所の月極延長保育を申し込みますか？",null,null,null,null,null,null,null,null,null,null,null,null,null,null,null,null,null,null,null,null,null,null,null,null,null,null,null,null,null,"きょうだいで申し込む場合"]
[null,null,null,null,null,null,null,null,null,null,null,null,null,null,null,null,null,null,null,null,null,null,null,null,null,null,null,null,null,null,null,null,null,null,null,null,null,null,null,null,null,null,null,null,null,null,null,null,null,null,null,null,null,null,null,null,null,null,null,null,null,false,{"$f":"IF(OR(BK59=0,BJ65=TRUE,BJ66=TRUE),TRUE,FALSE)","v":true}]
[null,null,null,null,null,null,null,null,null,null,null,null,null,null,null,null,null,null,null,null,null,null,null,null,null,null,null,null,null,null,null,null,null,null,"希望する□欄に✓を1つ付けてください。",null,null,null,null,null,null,null,null,null,null,null,null,null,null,null,null,null,null,null,null,null,null,null,null,null,null,false]
[null,null,null,null,null,null,"はい",null,"　→延長保育の申込書が別に必要です。",null,null,null,null,null,null,null,null,null,null,null,null,null,null,null,null,null,"いいえ"]
[null,null,null,null,null,null,null,null,null,null,null,null,null,null,null,null,null,null,null,null,null,null,null,null,null,null,null,null,null,null,null,null,null,null,null,null,null,null,null,null,null,null,null,null,null,null,null,null,null,null,null,null,null,null,null,null,null,null,null,null,null,false]
[null,null,null,null,null,null,null,null,null,null,null,null,null,null,null,null,null,null,null,null,null,null,null,null,null,null,null,null,null,null,null,null,null,null,"○必ず同じ月に入所することを希望する場合",null,null,null,null,null,null,null,null,null,null,null,null,null,null,null,null,null,null,null,null,null,null,null,null,null,null,false]
[null,null,null,"※ 　区立保育所は、１歳児クラス以上(根津保育園は満１歳以上)の児童が申し込みできます。",null,null,null,null,null,null,null,null,null,null,null,null,null,null,null,null,null,null,null,null,null,null,null,null,null,null,null,null,null,null,null,null,null,null,null,null,null,null,null,null,null,null,null,null,null,null,null,null,null,null,null,null,null,null,null,null,null,false]
[null,null,null,null,null,null,null,null,null,null,null,null,null,null,null,null,null,null,null,null,null,null,null,null,null,null,null,null,null,null,null,null,null,null,null,null,null,null,null,null,null,null,null,null,null,null,null,null,null,null,null,null,null,null,null,null,null,null,null,null,null,false]
[null,null,null,"※ 　私立保育所については、入所内定後に直接保育所へお申し込みください。",null,null,null,null,null,null,null,null,null,null,null,null,null,null,null,null,null,null,null,null,null,null,null,null,null,null,null,null,null,null,null,null,null,null,"同園入所のみ希望する",null,null,null,null,null,null,null,null,null,null,null,null,null,null,null,null,null,null,null,null,null,null,false]
[null,null,null,null,null,null,null,null,null,null,null,null,null,null,null,null,null,null,null,null,null,null,null,null,null,null,null,null,null,null,null,null,null,null,null,null,null,null,null,null,null,null,null,null,null,null,null,null,null,null,null,null,null,null,null,null,null,null,null,null,null,false]
[null,null,null,null,null,null,null,null,null,null,null,null,null,null,null,null,null,null,null,null,null,null,null,null,null,null,null,null,null,null,null,null,null,null,null,null,null,null,null,null,null,null,null,null,null,null,null,null,null,null,null,null,null,null,null,null,null,null,null,null,null,false]
["通園を希望する期間",null,null,null,null,null,null,null,null,null,null,null,null,null,"から",null,null,null,"小学校に就学する年の３月末日まで\n（又は卒園まで）",null,null,null,null,null,null,null,null,null,null,null,null,null,null,null,null,null,"別園になっても入所を希望する",null,null,null,null,null,null,null,null,null,null,null,null,null,null,null,null,null,null,null,null,null,null,null,null,{"$f":"COUNTIF(BJ68:BJ74,TRUE)","v":0}]
[]
[null,null,null,null,null,null,null,null,null,null,null,null,null,null,null,null,null,null,null,null,null,null,null,null,null,null,null,null,null,null,null,null,null,null,null,null,null,null,null,null,null,null,null,null,null,null,null,null,null,null,null,null,null,null,null,null,null,null,null,null,null,false]
[null,null,null,null,null,null,null,null,null,null,null,null,null,null,null,null,null,null,null,null,null,null,null,null,null,null,null,null,null,null,null,null,null,null,null,null,null,null,null,null,null,"それぞれの希望順位が高い園を優先する",null,null,null,null,null,null,null,null,null,null,null,null,null,null,null,null,null,null,null,false]
[null,null,null,null,null,null,null,null,null,null,null,null,null,null,null,null,null,null,null,null,null,null,null,"年",null,null,null,null,"月末まで",null,null,null,null,null,null,null,null,null,null,null,null,null,null,null,null,null,null,null,null,null,null,null,null,null,null,null,null,null,null,null,null,{"$f":"IF(OR(BJ77=TRUE,BJ78=TRUE),TRUE,FALSE)","v":false}]
[null,null,null,null,null,null,null,null,null,null,null,null,null,null,null,null,null,null,null,null,null,null,null,null,null,null,null,null,null,null,null,null,null,null,null,null,null,null,null,null,null,null,null,null,null,null,null,null,null,null,null,null,null,null,null,null,null,null,null,null,null,{"$f":"IF(AND(BJ78=TRUE,S79=\"\"),FALSE,TRUE)","v":true}]
[null,null,null,null,null,null,null,null,null,null,null,null,null,null,null,null,null,null,null,null,null,null,null,null,null,null,null,null,null,null,null,null,null,null,null,null,null,null,null,null,null,"希望順位が低くても同園となることを優先する",null,null,null,null,null,null,null,null,null,null,null,null,null,null,null,null,null,null,null,{"$f":"IF(AND(BJ78=TRUE,Z79=\"\"),FALSE,TRUE)","v":true}]
[null,null,null,null,null,null,null,null,null,null,null,null,null,null,null,null,null,null,null,null,null,null,null,null,null,null,null,null,null,null,null,null,null,null,null,null,null,null,null,null,null,null,null,null,null,null,null,null,null,null,null,null,null,null,null,null,null,null,null,null,null,{"$f":"IF(AND(BJ78=TRUE,BJ80=TRUE,BJ81=TRUE),TRUE,FALSE)","v":false}]
["保育の必要性の認定　※　転園申請で「保育の必要性」に変更がない方は記入不要です。"]
[]
[null,null,null,null,null,null,null,null,null,null,null,null,null,null,null,null,null,null,null,null,null,null,null,null,null,null,null,null,null,null,null,null,null,null,"○別の月になっても入所することを希望する場合"]
["希望保育時間",null,null,null,null,null,null,null,null,"保育短時間（9：00～17：00の間で保育の必要な時間）",null,null,null,null,null,null,null,null,null,null,null,null,null,null,null,null,null,null,null,null,null,null,null,null,null,null,null,null,null,null,null,null,null,null,null,null,null,null,null,null,null,null,null,null,null,null,null,null,null,null,null,false]
[null,null,null,null,null,null,null,null,null,null,null,null,null,null,null,null,null,null,null,null,null,null,null,null,null,null,null,null,null,null,null,null,null,null,null,null,null,null,null,null,null,null,null,null,null,null,null,null,null,null,null,null,null,null,null,null,null,null,null,null,null,false]
[null,null,null,null,null,null,null,null,null,null,null,null,null,null,null,null,null,null,null,null,null,null,null,null,null,null,null,null,null,null,null,null,null,null,null,null,null,null,"同園入所のみ希望する",null,null,null,null,null,null,null,null,null,null,"⇒きょうだい条件確認書（区様式）　\n　をご提出ください。"]
[null,null,null,null,null,null,null,null,null,"保育標準時間（7：15～18：15の間で保育の必要な時間※）\n※延長保育利用の場合は～19：15"]
[]
[null,null,null,null,null,null,null,null,null,null,null,null,null,null,null,null,null,null,null,null,null,null,null,null,null,null,null,null,null,null,null,null,null,null,null,null,"別園になっても入所を希望する"]
[null,null,null,null,null,null,null,null,null,null,null,null,null,null,null,null,null,null,null,null,null,null,null,null,null,null,null,null,null,null,null,null,null,null,null,null,null,null,null,null,null,null,null,null,null,null,null,null,null,null,null,null,null,null,null,null,null,null,null,null,null,false,{"$f":"IF(COUNTIF(BJ92:BJ98,TRUE)=1,TRUE,FALSE)","v":false}]
["保育の利用を\n必要とする事由",null,null,null,null,null,null,"保護者①",null,null,null,null,null,"就労",null,null,null,"就学",null,null,null,"求職中",null,null,null,null,"疾病・障害",null,null,null,null,null,null,null,null,null,null,null,null,null,null,null,null,null,null,null,null,null,null,null,null,null,null,null,null,null,null,null,null,null,null,false]
[null,null,null,null,null,null,null,null,null,null,null,null,null,null,null,null,null,null,null,null,null,null,null,null,null,null,null,null,null,null,null,null,null,null,null,null,null,null,null,null,null,"それぞれの希望順位が高い園を優先する",null,null,null,null,null,null,null,null,null,null,null,null,null,null,null,null,null,null,null,false]
[null,null,null,null,null,null,null,null,null,null,null,null,null,null,null,null,null,null,null,null,null,null,null,null,null,null,null,null,null,null,null,null,null,null,null,null,null,null,null,null,null,null,null,null,null,null,null,null,null,null,null,null,null,null,null,null,null,null,null,null,null,false]
[null,null,null,null,null,null,null,null,null,null,null,null,null,"看護・介護",null,null,null,null,null,"妊娠・出産",null,null,null,null,null,null,"その他",null,null,null,null,null,null,null,null,null,null,null,null,null,null,null,null,null,null,null,null,null,null,null,null,null,null,null,null,null,null,null,null,null,null,false]
[null,null,null,null,null,null,null,null,null,null,null,null,null,null,null,null,null,null,null,null,null,null,null,null,null,null,null,null,null,null,null,null,null,null,null,null,null,null,null,null,null,"希望順位が低くても同園となることを優先する",null,null,null,null,null,null,null,null,null,null,null,null,null,null,null,null,null,null,null,false]
[null,null,null,null,null,null,null,null,null,null,null,null,null,null,null,null,null,null,null,null,null,null,null,null,null,null,null,null,null,null,null,null,null,null,null,null,null,null,null,null,null,null,null,null,null,null,null,null,null,null,null,null,null,null,null,null,null,null,null,null,null,false]
[null,null,null,null,null,null,null,"保護者②",null,null,null,null,null,"就労",null,null,null,"就学",null,null,null,"求職中",null,null,null,null,"疾病・障害",null,null,null,null,null,null,null,null,null,null,null,null,null,null,null,null,null,null,null,null,null,null,null,null,null,null,null,null,null,null,null,null,null,null,false,{"$f":"IF(COUNTIF(BJ99:BJ105,TRUE)=1,TRUE,FALSE)","v":false}]
[null,null,null,null,null,null,null,null,null,null,null,null,null,null,null,null,null,null,null,null,null,null,null,null,null,null,null,null,null,null,null,null,null,null,null,null,null,null,null,null,null,null,null,null,null,null,null,null,null,null,null,null,null,null,null,null,null,null,null,null,null,false]
[null,null,null,null,null,null,null,null,null,null,null,null,null,null,null,null,null,null,null,null,null,null,null,null,null,null,null,null,null,null,null,null,null,null,null,null,"上記以外の条件を希望する場合",null,null,null,null,null,null,null,null,null,null,null,null,"⇒きょうだい条件確認書（区様式）　\n　をご提出ください。",null,null,null,null,null,null,null,null,null,null,null,false]
[null,null,null,null,null,null,null,null,null,null,null,null,null,"看護・介護",null,null,null,null,null,"妊娠・出産",null,null,null,null,null,null,"その他",null,null,null,null,null,null,null,null,null,null,null,null,null,null,null,null,null,null,null,null,null,null,null,null,null,null,null,null,null,null,null,null,null,null,false]
[null,null,null,null,null,null,null,null,null,null,null,null,null,null,null,null,null,null,null,null,null,null,null,null,null,null,null,null,null,null,null,null,null,null,null,null,null,null,null,null,null,null,null,null,null,null,null,null,null,null,null,null,null,null,null,null,null,null,null,null,null,false]
[null,null,null,null,null,null,null,null,null,null,null,null,null,null,null,null,null,null,null,null,null,null,null,null,null,null,null,null,null,null,null,null,null,null,null,null,null,null,null,null,null,null,null,null,null,null,null,null,null,null,null,null,null,null,null,null,null,null,null,null,null,false]
[null,null,null,null,null,null,null,null,null,null,null,null,null,null,null,null,null,null,null,null,null,null,null,null,null,null,null,null,null,null,null,null,null,null,null,null,null,null,null,null,null,null,null,null,null,null,null,null,null,null,null,null,null,null,null,null,null,null,null,null,null,false]
["幼児保育課記入欄",null,null,null,null,null,null,null,null,null,null,null,null,null,null,"窓口　（父・母・　　　　）　　受付者（　　　　）／郵送／夜間Ｐ　　保留通知",null,null,null,null,null,null,null,null,null,null,null,null,null,null,null,null,null,null,null,null,null,null,null,null,null,null,null,null,null,null,null,null,null,null,"収受印"]
[]
[]
["母資料　　　　収・依　…　　"]
[]
["父資料　　　　収・依　…　　"]
[]
["税資料　　　　収・依　…　　"]
[]
["受　託　　　 　収・依　…　　"]
[]
["その他　　　　収・依　…　　",null,null,null,null,null,null,null,null,null,null,null,null,null,null,"父　　　　母　　　　区4　新1　親1　受1　待1　多子　　　　ひ　　　　　　　　　　　　計",null,null,null,null,null,null,null,null,null,null,null,null,null,null,null,null,null,null,null,null,null,null,null,null,null,null,null,null,null,null,null,null,null,null,"№"]

{"sheet":"施設コード","index":1,"n_rows":123,"n_cols":3,"rows_kept":123,"cut":false,"hidden":false,"merged":[]}
["AIAI　NURSERY　新大塚",1748,"AIAI　NURSERY　新大塚"]
["藍染保育園",101,"藍染保育園"]
["青柳保育園",103,"青柳保育園"]
["赤門小規模保育園",20025,"赤門小規模保育園"]
["明日葉保育園西片園",1770,"明日葉保育園西片園"]
["アスク本駒込保育園",228,"アスク本駒込保育園"]
["うぃず千駄木保育園",1744,"うぃず千駄木保育園"]
["えがおの森保育園・せんごく",1521,"えがおの森保育園・せんごく"]
["大空と大地のなーさりぃ文京千石園",1859,"大空と大地のなーさりぃ文京千石園"]
["大空と大地のなーさりぃ茗荷谷園",1714,"大空と大地のなーさりぃ茗荷谷園"]
["大塚保育園",108,"大塚保育園"]
["お茶の水女子大学こども園",16100,"お茶の水女子大学こども園"]
["家庭的保育室 Sandy's",23003,"家庭的保育室 Sandy's"]
["家庭的保育室プチ・アンジュ",23006,"家庭的保育室プチ・アンジュ"]
["神田川ほとりに花咲く保育園",1765,"神田川ほとりに花咲く保育園"]
["キッズハーモニー・白山",206,"キッズハーモニー・白山"]
["キッズガーデン文京春日",238,"キッズガーデン文京春日"]
["キッズパートナー文京駕籠町",20018,"キッズパートナー文京駕籠町"]
["キッズパートナー文京関口",1721,"キッズパートナー文京関口"]
["キッズパートナー文京千石",1749,"キッズパートナー文京千石"]
["キッズパートナー文京本駒込",1771,"キッズパートナー文京本駒込"]
["キッズラボ千石園",1860,"キッズラボ千石園"]
["木下の保育園白山",1717,"木下の保育園白山"]
["キューピールーム新大塚園",20021,"キューピールーム新大塚園"]
["クオリスキッズ江戸川橋保育園",1766,"クオリスキッズ江戸川橋保育園"]
["クオリスキッズ小石川保育園",1858,"クオリスキッズ小石川保育園"]
["クオリスキッズ駒込保育園",1628,"クオリスキッズ駒込保育園"]
["クオリスキッズ水道橋保育園",1768,"クオリスキッズ水道橋保育園"]
["グローバルキッズ大塚四丁目園",1720,"グローバルキッズ大塚四丁目園"]
["グローバルキッズ後楽二丁目園",225,"グローバルキッズ後楽二丁目園"]
["グローバルキッズ後楽二丁目園 分園",227,"グローバルキッズ後楽二丁目園 分園"]
["グローバルキッズ新大塚園",240,"グローバルキッズ新大塚園"]
["グローバルキッズ茗荷谷園",1716,"グローバルキッズ茗荷谷園"]
["小石川ここわ保育園",1918,"小石川ここわ保育園"]
["小石川ちとせ保育園",1761,"小石川ちとせ保育園"]
["こころおちゃのみず第一保育園",1625,"こころおちゃのみず第一保育園"]
["こころおちゃのみず第二保育園",1626,"こころおちゃのみず第二保育園"]
["こころの保育園文京西片",209,"こころの保育園文京西片"]
["こころぶんきょうみょうがだに保育園",1718,"こころぶんきょうみょうがだに保育園"]
["こどもヶ丘保育園本駒込園",1675,"こどもヶ丘保育園本駒込園"]
["こどもヶ丘保育園第二本駒込園",1722,"こどもヶ丘保育園第二本駒込園"]
["こどもヶ丘保育園本駒込小規模園",20027,"こどもヶ丘保育園本駒込小規模園"]
["このえ本駒込保育園",1772,"このえ本駒込保育園"]
["このえ第二本駒込保育園",1855,"このえ第二本駒込保育園"]
["このえ本郷三丁目小規模保育園",20016,"このえ本郷三丁目小規模保育園"]
["こひなた保育園",106,"こひなた保育園"]
["駒込保育園",105,"駒込保育園"]
["さくらさくみらい護国寺",1701,"さくらさくみらい護国寺"]
["さくらさくみらい小日向",1673,"さくらさくみらい小日向"]
["さくらさくみらい水道",1719,"さくらさくみらい水道"]
["さしがや保育園",104,"さしがや保育園"]
["サンライズキッズ保育園白山園",20020,"サンライズキッズ保育園白山園"]
["慈愛会保育園",202,"慈愛会保育園"]
["しおみ保育園",109,"しおみ保育園"]
["小学館アカデミー小石川保育園",210,"小学館アカデミー小石川保育園"]
["小学館アカデミー茗荷谷保育園",220,"小学館アカデミー茗荷谷保育園"]
["水道保育園",112,"水道保育園"]
["千石すきっぷ保育園",1764,"千石すきっぷ保育園"]
["千石西保育園",115,"千石西保育園"]
["千石保育園",110,"千石保育園"]
["SOMPOスマイルキッズ 江戸川橋保育園",214,"SOMPOスマイルキッズ 江戸川橋保育園"]
["ソラスト茗荷谷保育園",3105,"ソラスト茗荷谷保育園"]
["たんぽぽ保育園",203,"たんぽぽ保育園"]
["たんぽぽ保育園第３分園",217,"たんぽぽ保育園第３分園"]
["ちいさいおうち大塚仲町",20032,"ちいさいおうち大塚仲町"]
["ちいさいおうち春日とモーハウス",25020,"ちいさいおうち春日とモーハウス"]
["ちいさいおうち小石川",20019,"ちいさいおうち小石川"]
["ちゃいれっく小石川保育園",1762,"ちゃいれっく小石川保育園"]
["ちゃいれっく新大塚駅前保育園",1352,"ちゃいれっく新大塚駅前保育園"]
["テンダーラビング保育園音羽",1715,"テンダーラビング保育園音羽"]
["テンダーラビング保育園小石川",1671,"テンダーラビング保育園小石川"]
["テンダーラビング保育園関口",1767,"テンダーラビング保育園関口"]
["テンダーラビング保育園千駄木",1627,"テンダーラビング保育園千駄木"]
["テンダーラビング保育園茗荷谷",1350,"テンダーラビング保育園茗荷谷"]
["東京こども保育園",1347,"東京こども保育園"]
["同仁美登里保育園",1355,"同仁美登里保育園"]
["とことこ保育ルーム",23010,"とことこ保育ルーム"]
["富坂まきば保育園",1623,"富坂まきば保育園"]
["どんぐり保育園",204,"どんぐり保育園"]
["どんぐり保育園ラゴム",1724,"どんぐり保育園ラゴム"]
["Nursery room Coco",23004,"Nursery room Coco"]
["にじいろ保育園千駄木",1839,"にじいろ保育園千駄木"]
["にじのいるか保育園小石川",1349,"にじのいるか保育園小石川"]
["にじのいるか保育園千石",1520,"にじのいるか保育園千石"]
["にじのいるか保育園千石第二",1672,"にじのいるか保育園千石第二"]
["ﾐｱﾍﾙｻ保育園ひびき湯島",1348,"ﾐｱﾍﾙｻ保育園ひびき湯島"]
["根津保育園",390,"根津保育園"]
["白山ひかり保育園",215,"白山ひかり保育園"]
["ハッピーナーサリー千駄木小規模保育園",20048,"ハッピーナーサリー千駄木小規模保育園"]
["ハッピーマム茗荷谷",1351,"ハッピーマム茗荷谷"]
["久堅保育園",102,"久堅保育園"]
["文京ガーデンひかり保育園",1857,"文京ガーデンひかり保育園"]
["文京白山雲母保育園",1763,"文京白山雲母保育園"]
["ベネッセかごまち保育園",241,"ベネッセかごまち保育園"]
["ベネッセ 千石保育園",239,"ベネッセ 千石保育園"]
["保育所まあむ東大前園",1354,"保育所まあむ東大前園"]
["ぽけっとランド本郷保育園",1861,"ぽけっとランド本郷保育園"]
["ぽっかぽか保育室",23002,"ぽっかぽか保育室"]
["ポピンズナーサリースクール千駄木",229,"ポピンズナーサリースクール千駄木"]
["ポピンズナーサリースクール本郷",1519,"ポピンズナーサリースクール本郷"]
["本郷ちとせ保育園",1856,"本郷ちとせ保育園"]
["本郷保育園",107,"本郷保育園"]
["本駒込西保育園",116,"本駒込西保育園"]
["本駒込プチ・クレイシュ",1353,"本駒込プチ・クレイシュ"]
["本駒込保育園",113,"本駒込保育園"]
["本駒込南保育園",114,"本駒込南保育園"]
["マジオひまわり保育園本郷",1902,"マジオひまわり保育園本郷"]
["まなびの森保育園茗荷谷",208,"まなびの森保育園茗荷谷"]
["繭の糸おとわ小規模保育園",20023,"繭の糸おとわ小規模保育園"]
["茗荷谷ここわ保育園",1713,"茗荷谷ここわ保育園"]
["みらいつばさ千駄木保育園",20024,"みらいつばさ千駄木保育園"]
["MIRATZ白山保育園",20044,"MIRATZ白山保育園"]
["MIRATZ本郷保育園",20026,"MIRATZ本郷保育園"]
["MIRATZ本郷第二保育園",1769,"MIRATZ本郷第二保育園"]
["MIRATZ目白台保育園",20022,"MIRATZ目白台保育園"]
["向丘保育園",111,"向丘保育園"]
["目白台保育園",117,"目白台保育園"]
["モニカ本駒込園",1674,"モニカ本駒込園"]
["モニカ茗荷谷駅前園",1624,"モニカ茗荷谷駅前園"]
["柳町保育園",581,"柳町保育園"]
["柳町幼稚園【長時間保育】",1582,"柳町幼稚園【長時間保育】"]
["洛和大塚みどり保育園",20033,"洛和大塚みどり保育園"]
["わくわく保育園",25014,"わくわく保育園"]

{"sheet":"現況届","index":2,"n_rows":45,"n_cols":50,"rows_kept":45,"cut":false,"hidden":false,"merged":[[1,0,1,35],[2,28,2,29],[2,30,2,35],[3,0,3,2],[3,3,3,20],[3,22,3,35],[9,1,9,3],[9,4,9,14],[9,15,9,18],[9,20,9,30],[9,31,9,34],[10,0,11,3],[10,4,11,19],[10,20,11,35],[4,0,4,2],[4,3,4,20],[4,22,4,35],[5,0,7,2],[5,3,5,20],[5,23,5,35],[6,3,6,20],[6,23,6,35],[7,3,7,20],[7,23,7,35],[12,0,14,3],[14,8,14,18],[14,24,14,34],[15,0,20,1],[15,2,15,3],[15,4,15,19],[15,20,15,35],[16,2,16,3],[16,4,16,19],[16,20,16,35],[17,28,17,31],[17,32,17,33],[17,34,17,35],[18,2,18,3],[18,5,18,6],[18,8,18,12],[18,13,18,14],[18,15,18,19],[18,21,18,22],[18,24,18,28],[17,2,17,3],[17,4,17,11],[17,12,17,15],[17,16,17,17],[17,18,17,19],[17,20,17,27],[19,31,19,35],[20,2,20,3],[20,4,20,10],[20,11,20,12],[20,13,20,19],[20,20,20,26],[20,27,20,28],[20,29,20,35],[18,29,18,30],[18,31,18,35],[19,2,19,3],[19,5,19,6],[19,8,19,12],[19,13,19,14],[19,15,19,19],[19,21,19,22],[19,24,19,28],[19,29,19,30],[24,8,24,11],[24,17,24,18],[24,20,24,23],[21,25,21,27],[21,28,21,35],[22,2,22,3],[22,5,22,6],[22,8,22,12],[22,13,22,14],[22,15,22,19],[22,21,22,22],[22,24,22,28],[22,29,22,30],[21,2,21,3],[21,5,21,7],[21,9,21,11],[21,12,21,19],[21,21,21,23],[22,31,22,35],[21,0,22,1],[26,23,26,35],[27,0,27,3],[27,4,27,19],[27,20,27,35],[29,0,29,3],[29,4,29,20],[29,21,29,35],[24,24,24,27],[24,33,24,34],[25,0,26,3],[25,4,25,11],[25,12,25,19],[25,20,25,27],[25,28,25,35],[26,4,26,6],[26,7,26,19],[26,20,26,22],[23,0,24,3],[23,4,23,6],[23,7,23,19],[23,20,23,22],[23,23,23,35],[24,4,24,7],[30,1,30,3],[30,8,30,9],[30,19,30,20],[30,22,30,35],[31,1,31,3],[31,8,31,9],[31,10,31,13],[31,14,31,20],[31,22,31,35],[32,1,32,3],[32,9,32,10],[32,15,32,16],[32,22,32,35],[33,1,33,3],[33,9,33,10],[33,11,33,15],[33,16,33,20],[33,22,33,35],[34,0,44,0],[34,3,34,7],[34,8,34,14],[34,15,34,25],[34,26,34,33],[34,34,34,35],[35,1,38,1],[35,2,36,2],[35,3,36,7],[35,8,36,9],[37,2,38,2],[37,3,38,7],[37,8,38,9],[37,10,38,10],[37,11,38,14],[37,15,38,25],[35,10,36,10],[35,11,36,14],[35,15,36,25],[39,34,40,35],[40,27,40,28],[40,30,40,31],[37,27,37,28],[37,30,37,31],[37,34,38,35],[38,27,38,28],[38,30,38,31],[35,27,35,28],[35,30,35,31],[35,34,36,35],[36,27,36,28],[36,30,36,31],[44,2,44,35],[41,27,41,28],[41,30,41,31],[41,34,42,35],[42,27,42,28],[42,30,42,31],[43,1,43,6],[43,12,43,17],[43,19,43,34],[41,2,42,2],[41,3,42,7],[41,8,42,9],[41,10,42,10],[41,11,42,14],[41,15,42,25],[39,1,42,1],[39,2,40,2],[39,3,40,7],[39,8,40,9],[39,10,40,10],[39,11,40,14],[39,15,40,25],[39,27,39,28],[39,30,39,31]]}
["別記様式第５号（第９条関係）"]
["施設型給付費・地域型保育給付費等現況届"]
["文京区長　殿",null,null,null,null,null,null,null,null,null,null,null,null,null,null,null,null,null,null,null,null,null,null,null,null,null,null,null,"日付"]
["住所",null,null,null,null,null,null,null,null,null,null,null,null,null,null,null,null,null,null,null,null,null,"電話番号"]
["保護者氏名",null,null,"※自署又は記名押印"]
["児童氏名\n（生年月日）",null,null,"（　　　　年　　月　　日）",null,null,null,null,null,null,null,null,null,null,null,null,null,null,null,null,null,null,null,"在園／申請中"]
[null,null,null,"（　　　　年　　月　　日）",null,null,null,null,null,null,null,null,null,null,null,null,null,null,null,null,null,null,null,"在園／申請中"]
[null,null,null,"（　　　　年　　月　　日）",null,null,null,null,null,null,null,null,null,null,null,null,null,null,null,null,null,null,null,"在園／申請中"]
["　以下のとおり現況を届け出ます。"]
["①","保護者の状況",null,null,"保護者①の状況（児童との続柄：",null,null,null,null,null,null,null,null,null,null,null,null,null,null,"）","保護者②の状況（児童との続柄：",null,null,null,null,null,null,null,null,null,null,null,null,null,null,"）"]
["2023年1月1日時点での\n住所地について",null,null,null,"　文京区　　　文京区外\n※区外の場合、保育料を決定するための資料も必要",null,null,null,null,null,null,null,null,null,null,null,null,null,null,null,"　文京区　　　文京区外\n※区外の場合、保育料を決定するための資料も必要"]
[]
["該当する番号に☑を付けてください。",null,null,null,null,"就労(常勤 派遣 ﾊﾟｰﾄ 自営)",null,null,null,null,null,null,null,null,"就学",null,null,"求職",null,null,null,"就労(常勤 派遣 ﾊﾟｰﾄ 自営)",null,null,null,null,null,null,null,null,"就学",null,null,"求職"]
[null,null,null,null,null,"疾病･障害",null,null,null,"看護･介護",null,null,null,"妊娠･出産",null,null,null,null,null,null,null,"疾病･障害",null,null,null,"看護･介護",null,null,null,"妊娠･出産"]
[null,null,null,null,null,"その他（",null,null,null,null,null,null,null,null,null,null,null,null,null,"）",null,"その他（",null,null,null,null,null,null,null,null,null,null,null,null,null,"）"]
["就労\n（内定）\n・\n就学",null,"勤務・就学先"]
[null,null,"所在地"]
[null,null,"電話番号",null,null,null,null,null,null,null,null,null,"(通勤・通学",null,null,null,null,null,"分）",null,null,null,null,null,null,null,null,null,"(通勤・通学",null,null,null,null,null,"分）"]
[null,null,"正規の勤務・\n就学の時間等",null,"週",null,null,"日",null,null,null,null,null,"～",null,null,null,null,null,null,"週",null,null,"日",null,null,null,null,null,"～"]
[null,null,"育児短時間勤務\n利用中の場合",null,"週",null,null,"日",null,null,null,null,null,"～",null,null,null,null,null,null,"週",null,null,"日",null,null,null,null,null,"～"]
[null,null,"育児休業の期間",null,null,null,null,null,null,null,null,"～",null,null,null,null,null,null,null,null,null,null,null,null,null,null,null,"～"]
["求職中",null,"前職の有無",null,null,"前職なし　",null,null,null,"退職日:",null,null,null,null,null,null,null,null,null,null,null,"前職なし　",null,null,null,"退職日:"]
[null,null,"前職の勤務",null,"週",null,null,"日",null,null,null,null,null,"～",null,null,null,null,null,null,"週",null,null,"日",null,null,null,null,null,"～",null,null,null,null,null,null,null,null,null,null,null,null,null,null,null,null,null,null,null,{"$f":"IF(AND($AO$22=TRUE,AC22=\"\"),1,2)","v":2}]
["病気・障害",null,null,null,"病名",null,null,null,null,null,null,null,null,null,null,null,null,null,null,null,"病名"]
[null,null,null,null,"入院(通院)日",null,null,null,null,null,null,null,"から",null,"週",null,"月",null,null,"回）","入院(通院)日",null,null,null,null,null,null,null,"から",null,"週",null,"月",null,null,"回）"]
["看護・介護",null,null,null," 看護・介護の相手方氏名：",null,null,null,null,null,null,null,null,null,null,null,null,null,null,null," 看護・介護の相手方氏名："]
[null,null,null,null," 続柄",null,null,null,null,null,null,null,null,null,null,null,null,null,null,null," 続柄"]
["その他"]
[]
[null,null,null,null,"↓☑を付けて、あり・該当の場合は（　）内を記載",null,null,null,null,null,null,null,null,null,null,null,null,null,null,null,null,"提出書類"]
["②","世帯の障害者",null,null,null,"なし",null,null,"あり",null,null,null,"父",null,"母",null,"子",null,"他",null,null,null," 障害者手帳（愛の手帳）のコピー"]
["③","出産予定",null,null,null,"なし",null,null,"あり",null,"予定日：",null,null,null,null,null,null,null,null,null,null,null," 母子手帳のコピー（表紙と出産予定日が分かるページ）\n　出産・育児休業に関する確認書"]
["④","ひとり親家庭",null,null,null,"非該当",null,null,null,"該当",null,null,null,null,null,null,null,null,null,null,null,null," ひとり親の家庭状況申告書\n　（内容により戸籍謄本等が必要）"]
["⑤","生活保護",null,null,null,"非該当",null,null,null,"該当",null,"保護開始日：",null,null,null,null,null,null,null,null,null,null," 生活保護受給証明書"]
["⑥親族の状況",null,null,"氏名",null,null,null,null,"年齢(生年月日)",null,null,null,null,null,null,"住所",null,null,null,null,null,null,null,null,null,null,"祖父母の状況",null,null,null,null,null,null,null,"不存在"]
[null,"保護者①","祖父",null,null,null,null,null,{"$f":"IF(L36=\"\",\"\",IFERROR(DATEDIF(L36,TODAY(),\"y\"),0))","v":""},null,"歳",null,null,null,null,null,null,null,null,null,null,null,null,null,null,null,null,"就労",null,null,"無職"]
[null,null,null,null,null,null,null,null,null,null,null,null,null,null,null,null,null,null,null,null,null,null,null,null,null,null,null,"介護",null,null,"疾病"]
[null,null,"祖母",null,null,null,null,null,{"$f":"IF(L38=\"\",\"\",IFERROR(DATEDIF(L38,TODAY(),\"y\"),0))","v":""},null,"歳",null,null,null,null,null,null,null,null,null,null,null,null,null,null,null,null,"就労",null,null,"無職"]
[null,null,null,null,null,null,null,null,null,null,null,null,null,null,null,null,null,null,null,null,null,null,null,null,null,null,null,"介護",null,null,"疾病"]
[null,"保護者②","祖父",null,null,null,null,null,{"$f":"IF(L40=\"\",\"\",IFERROR(DATEDIF(L40,TODAY(),\"y\"),0))","v":""},null,"歳",null,null,null,null,null,null,null,null,null,null,null,null,null,null,null,null,"就労",null,null,"無職"]
[null,null,null,null,null,null,null,null,null,null,null,null,null,null,null,null,null,null,null,null,null,null,null,null,null,null,null,"介護",null,null,"疾病"]
[null,null,"祖母",null,null,null,null,null,{"$f":"IF(L42=\"\",\"\",IFERROR(DATEDIF(L42,TODAY(),\"y\"),0))","v":""},null,"歳",null,null,null,null,null,null,null,null,null,null,null,null,null,null,null,null,"就労",null,null,"無職"]
[null,null,null,null,null,null,null,null,null,null,null,null,null,null,null,null,null,null,null,null,null,null,null,null,null,null,null,"介護",null,null,"疾病"]
[null,"同居親族（別世帯を含む。）",null,null,null,null,null,null,"有",null,"無",null,"その他特記事項",null,null,null,null,null,"（",null,null,null,null,null,null,null,null,null,null,null,null,null,null,null,null,"）"]
[null,"※\n","同居親族又は祖父母で近隣（保護者住所地から半径５００メートル以内）に在住する６５歳未満の方は、\n保育の援助ができないことを証明する書類（就労証明書、介護状況申告書、診断書等）の提出が必要です。"]